Cogmind - Beta 12 @@@ ROGUE MODE // 2024.02.08 @ 05:40:47 Player: dankcaster889 Result: Destroyed by G-47 Trooper with Particle Gun Performance ------------- Evolutions (0) 0 Regions Visited (2) 400 Robots Destroyed (14) 70 Value Destroyed (271) 271 Prototype IDs (2) 40 Alien Tech Used (0) 0 Bonus (0) 0 TOTAL SCORE: 781 Bonus ------- None Cogmind --------- Core Integrity 0/250 Matter 285/300 Energy 3/100 System Corruption 0% Temperature Warm (118) Movement Core (50) Location -10/Mines Parts ------- > --- POWER (1) -------- (None) > --- PROPULSION (2) --- (None) > --- UTILITY (2) ------ Weight Redist. System > --- WEAPON (2) ------- Beam Rifle > --- INVENTORY (5) ---- Large Storage Unit Tractor Beam Light Assault Rifle Datajack Datajack Peak State ------------ > --- POWER ------------ Light Ion Engine > --- PROPULSION ------- Improved Aluminum Leg Improved Aluminum Leg > --- UTILITY ---------- Huge Storage Unit Weight Redist. System > --- WEAPON ----------- Beam Rifle Datajack > --- INVENTORY -------- Light Treads Light Treads Aluminum Leg Compact Wheel Flight Unit Heat Sink Small Storage Unit Large Storage Unit Core Shielding Tractor Beam EM Pulse Gun Particle Gun Light Assault Rifle Datajack Datajack [Rating: 12] Favorites ----------- Power Light Ion Engine Engine Light Ion Engine Power Core Light Nuclear Core Propulsion Light Treads Treads Light Treads Leg Aluminum Leg Flight Unit Flight Unit Utility Huge Storage Unit Device Heat Sink Storage Huge Storage Unit Weapon Light Assault Rifle Energy Gun Particle Gun Ballistic Gun Light Assault Rifle Special Melee Weapon Datajack Build | -11 -10 -10 ------- Run | Jun Mat Min Slots Evolved . | . . . Power . | . . . Propulsion . | . . . Utility . | . . . Weapon . | . . . Parts Attached 22 | 6 15 1 Power 3 | 1 2 . Engine 2 | 1 1 . Core 1 | . 1 . Reactor . | . . . Propulsion 7 | 2 4 1 Treads 2 | . 2 . Leg 4 | 2 2 . Wheel . | . . . Hover . | . . . Flight 1 | . . 1 Utility 6 | 1 5 . Device 3 | . 3 . Storage 3 | 1 2 . Processor . | . . . Hackware . | . . . Protection . | . . . Artifact . | . . . Weapon 6 | 2 4 . Energy Gun 3 | 1 2 . Energy Cannon . | . . . Ballistic Gun 2 | 1 1 . Ballistic Cannon . | . . . Launcher . | . . . Special Weapon . | . . . Impact Weapon . | . . . Slashing Weapon . | . . . Piercing Weapon . | . . . Special Melee Weapon 1 | . 1 . Unidentified Prototypes . | . . . Parts Lost 9 | . 5 4 Power 3 | . 2 1 Propulsion 4 | . 2 2 Utility 1 | . 1 . Weapon 1 | . . 1 Highest Loss Streak 4 | . 3 4 To Critical Strikes . | . . . Average Slot Usage (%) 95 | . 96 71 Engine 11 | . 11 9 Treads 16 | . 17 . Leg 10 | . 10 16 Device 10 | . 10 14 Storage 16 | . 17 4 Energy Gun 11 | . 11 14 Ballistic Gun 11 | . 11 . Special Melee Weapon 5 | . 5 2 Naked Turns . | . . . Heaviest Build 88 | 11 88 86 Greatest Support 40 | 20 40 32 Greatest Overweight (x) 6 | . 6 4 Average Overweight (x) 1 | . 1 . Largest Inventory Capacity 25 | 8 25 25 Average Capacity 21 | 7 21 13 Most Carried 15 | 2 15 15 Average Carried 7 | . 7 9 Final Capacity 25 | 8 25 5 Final Carried 15 | 2 15 5 Class Distribution -------------------- 100% | Mutant Dominant Class ---------------- Mutant | -10/Materials Mutant | -10/Mines Resources | -11 -10 -10 ----------- Run | Jun Mat Min Matter Collected 355 | 136 144 75 Remotely 28 | . 28 . Salvage Created 329 | . 220 109 Parts 31 | . 16 15 Haulers Intercepted . | . . . Recyclers Shooed . | . . . Parts Field Recycled . | . . . Retrieved Matter . | . . . Parts Self-Destructed . | . . . Prevented . | . . . Kills | -11 -10 -10 ------- Run | Jun Mat Min Combat Hostiles Destroyed 12 | . 6 6 Guns 12 | . 6 6 Classes Destroyed 3 | . 3 . Watcher 2 | . 2 . Swarmer 8 | . 3 5 Grunt 4 | . 3 1 Best Kill Streak 5 | . 1 5 Combat Bots Only 5 | . 1 5 Max Kills in Single Turn 1 | . 1 1 Gunslinging . | . . . Exploded . | . . . Melee . | . . . Uniques/NPCs Destroyed . | . . . Combat | -11 -10 -10 -------- Run | Jun Mat Min Damage Taken 1258 | . 783 475 Core 253 | . 141 112 Absorbed by Shields . | . . . Core Remaining (%) 100 | 100 . . Volleys Fired 90 | . 71 19 Largest 2 | . 2 1 Hottest 85 | . 85 56 Shots Fired 112 | . 93 19 Gun 112 | . 93 19 Cannon . | . . . Launcher . | . . . Special . | . . . Kinetic 65 | . 65 . Thermal 41 | . 22 19 Explosive . | . . . Electromagnetic 6 | . 6 . Robot Hit Streak 8 | . 5 8 Robot Miss Streak 3 | . 3 3 Penetration Max . | . . . Secondary Targets 1 | . 1 . Max Gunslinging Chain 1 | . 1 . Shots Hit Robots 55 | . 42 13 Core Hits 26 | . 20 6 Critical Kills . | . . . Critical Parts Destroyed . | . . . Critical Strikes 1 | . . 1 Burn 1 | . . 1 Melee Attacks 1 | . 1 . Impact . | . . . Slashing . | . . . Piercing . | . . . Sneak Attacks . | . . . Combat Hostiles . | . . . Follow-up Attacks . | . . . Damage Inflicted 700 | . 515 185 Guns 696 | . 511 185 Cannons . | . . . Explosions . | . . . Melee . | . . . Ramming 4 | . 4 . Kinetic 283 | . 283 . Thermal 336 | . 151 185 Explosive . | . . . Electromagnetic 77 | . 77 . Impact . | . . . Slashing . | . . . Piercing . | . . . Highest Corruption . | . . . Average Corruption . | . . . Corruption Purged . | . . . Corruption Blocked . | . . . Overload Shots . | . . . Overflow Damage . | . . . Projectiles . | . . . Explosions . | . . . Melee . | . . . Knockbacks . | . . . Impact . | . . . Kinetic . | . . . Secondary . | . . . Self-Inflicted Damage . | . . . Shots . | . . . Rammed 2 | . 2 . Targets Rammed 2 | . 2 . Kicked . | . . . Crushed . | . . . Highest Temperature 201 | . 201 149 Average Temperature 61 | . 48 86 Received Heat Transfer 348 | . 180 168 Siege Activations . | . . . Robots Corrupted . | . . . Combat Hostiles . | . . . Parts Fried 2 | . 2 . Impact Corruptions . | . . . Robots Melted . | . . . Combat Hostiles . | . . . Parts Melted 1 | . . 1 Heat Transferred 925 | . 370 555 Parts Sabotaged . | . . . Parts Stolen . | . . . Parts Stripped . | . . . Power Chain Reactions . | . . . Missiles Intercepted . | . . . Alert | -11 -10 -10 ------- Run | Jun Mat Min Peak Influence 145 | . 95 145 Initial . | . . . Average 11 | . 10 63 Maximum Alert Level . | . . . Low Security (%) 100 | 100 100 100 Level 1 . | . . . Level 2 . | . . . Level 3 . | . . . Level 4 . | . . . Level 5 . | . . . High Security . | . . . Max Security . | . . . Squads Dispatched 1 | . 1 . Investigation . | . . . Extermination . | . . . Reinforcement 1 | . 1 . Assault . | . . . Garrison . | . . . Intercept . | . . . Searches Triggered . | . . . Construction Impeded . | . . . Haulers Reinforced . | . . . Active Scanning Responses . | . . . Cargo Convoy Interrupts . | . . . Stealth | -11 -10 -10 --------- Run | Jun Mat Min Distress Signals 1 | . 1 . Communications Jammed . | . . . Distress Signals . | . . . Times Spotted 26 | . 18 8 Peak Tracking Total 6 | . 4 6 Tactical Retreats 2 | . . 2 Traps | -11 -10 -10 ------- Run | Jun Mat Min Traps Triggered 1 | . 1 . Indirectly . | . . . Trap Hack Attempts 3 | . 3 . Triggered . | . . . Disarmed 3 | . 3 . Reprogrammed . | . . . Reused . | . . . Traps Extracted . | . . . Installed . | . . . Triggered . | . . . Machines | -11 -10 -10 ---------- Run | Jun Mat Min Machines Disabled 1 | . 1 . Max in Single Turn 1 | . 1 . Machines Repaired . | . . . Machines Sabotaged . | . . . Overloaded Fab Kills . | . . . Hacking | -11 -10 -10 --------- Run | Jun Mat Min Machines Accessed 6 | . 6 . Terminals 5 | . 5 . Fabricators . | . . . Repair Stations . | . . . Recycling Units 1 | . 1 . Scanalyzers . | . . . Garrison Access . | . . . Total Hacks 17 | . 17 . Successful 9 | . 9 . Failed 8 | . 8 . Catastrophic 1 | . 1 . Database Lockouts . | . . . Manual . | . . . Terminals 13 | . 13 . Fabricators . | . . . Repair Stations . | . . . Recycling Units 4 | . 4 . Scanalyzers . | . . . Garrison Access . | . . . Terminal Hacks 7 | . 7 . Robot Analysis 1 | . 1 . Prototype ID Bank 1 | . 1 . Unreport Threat 1 | . 1 . Locate Traps 2 | . 2 . Disarm Traps 1 | . 1 . Registered Components 1 | . 1 . Fabricator Hacks . | . . . Repair Station Hacks . | . . . Recycling Unit Hacks 2 | . 2 . Process 1 | . 1 . Retrieve Matter 1 | . 1 . Scanalyzer . | . . . Garrison Access Hacks . | . . . Unauthorized Hacks . | . . . Terminals . | . . . Fabricators . | . . . Repair Stations . | . . . Recycling Units . | . . . Scanalyzers . | . . . Garrison Access . | . . . Data Cores Recovered . | . . . Used . | . . . Hacking Detections 3 | . 3 . Full Trace Events 3 | . 3 . Feedback Events . | . . . Feedback Blocked . | . . . Robot Schematics Acquired . | . . . Robots Built . | . . . Authchips . | . . . Time . | . . . Total Robot Build Rating . | . . . Part Schematics Acquired . | . . . Parts Built . | . . . Authchips . | . . . Time . | . . . Total Part Build Rating . | . . . Parts Repaired . | . . . Time . | . . . Parts Recycled . | . . . Recycled Matter 114 | . 114 . Retrieved Matter 63 | . 63 . Retrieved Components . | . . . Parts Scanalyzed . | . . . Part Schematics Acquired . | . . . Parts Damaged . | . . . Bothacking | -11 -10 -10 ------------ Run | Jun Mat Min Used RIF Installer . | . . . Robots Hacked . | . . . Non-combat . | . . . Combat . | . . . Robot Hacks Applied . | . . . Relay Couplers Released . | . . . Fabnet Peak Effective % . | . . . Robots Rewired . | . . . Allies Hacked . | . . . Hacks Repelled . | . . . Allies | -11 -10 -10 -------- Run | Jun Mat Min Total Allies . | . . . Largest Group . | . . . Highest-Rated Group . | . . . Highest-Rated Ally . | . . . Total Orders . | . . . Ally Attacks . | . . . Total Damage . | . . . Kills . | . . . Allies Corrupted . | . . . Allies Melted . | . . . Intel | -11 -10 -10 ------- Run | Jun Mat Min Robot Analysis Total 1 | . 1 . Derelict Logs Recovered . | . . . Drone Launches . | . . . Drone Recoveries . | . . . Exploration | -11 -10 -10 ------------- Run | Jun Mat Min Turns Passed 2181 | 73 2050 58 Spaces Moved 780 | 52 713 15 Core 4 | 4 . . Treads 385 | . 385 . Legs 379 | 48 328 3 Wheels . | . . . Hover . | . . . Flight 12 | . . 12 Fastest Speed 40 | 50 120 40 Average Speed 246 | 114 259 100 Slowest Speed 540 | 120 540 400 Overloaded Moves . | . . . Propulsion Burnouts . | . . . Robots Hopped . | . . . Cave-ins Triggered . | . . . Exploration Rate (%) 34 | 4 88 12 Regions Visited 2 Branch Regions 1 Pre-discovered Areas . | . . . Known Exits Taken . | . . . Unknown Exits Taken 2 | 1 1 . Scrap Searched . | . . . Spaces Dug . | . . . Terrain Destroyed . | . . . Melee . | . . . Projectile . | . . . AOE . | . . . Terrain Rammed . | . . . Walls Destroyed . | . . . Machines Disabled . | . . . Actions | -11 -10 -10 --------- Run | Jun Mat Min Total 931 | 65 825 41 Wait 2 | . . 2 Move 778 | 51 712 15 Hop . | . . . Pick Up 29 | 8 20 1 Fast Attach . | . . . Attach 13 | 6 6 1 Detach . | . . . Swap 9 | . 9 . Drop 4 | . 1 3 Fire 90 | . 71 19 Melee 1 | . 1 . Ram . | . . . Kick . | . . . Crush 2 | . 2 . Escape Stasis . | . . . Rewire . | . . . Trap 3 | . 3 . Miscellaneous . | . . . Route ------- -11/Junkyard -10/Materials (discovered 5 exits: [*Mat x3] / [*Min x2]) -10/Mines History --------- Turn | Location | Event 8 | -11/Junkyard | Discovered new exit (range 16) 74 | -11/Junkyard | Entered Materials 300 | -10/Materials | Build established: Mutant 367 | -10/Materials | Discovered new exit (range 6) 573 | -10/Materials | Core integrity fell below 50% 588 | -10/Materials | Lost 3 parts (1p2n) 884 | -10/Materials | Discovered new exit (range 9) 1302 | -10/Materials | Discovered new exit (range 12) 1456 | -10/Materials | Discovered new exit (range 7) 1715 | -10/Materials | Discovered new exit (range 7) 2124 | -10/Materials | Entered Mines 2147 | -10/Mines | Core integrity fell below 20% 2182 | -10/Mines | Destroyed by G-47 Trooper with Particle Gun Last Messages --------------- 02124_ S-10 Pest destroyed. 02130_ S-10 Pest suffers critical hit (Burn). 02130_ Datajack destroyed. 02140_ Imp. Aluminum Leg destroyed. 02149_ Dropped Huge Storage Unit. 02150_ R-06 Scavenger collects Sml. Storage Unit. 02152_ R-06 Scavenger collects Lgt. Assault Rifle. 02159_ S-10 Pest destroyed. 02162_ Acquired 16 matter. 02163_ Lgt. Ion Engine destroyed. 02169_ Lgt. Ion Engine melted. 02169_ S-10 Pest destroyed. 02170_ Acquired 17 matter. 02171_ G-34 Mercenary destroyed. 02172_ Acquired 42 matter. 02173_ Imp. Aluminum Leg destroyed. 02179_ S-10 Pest destroyed. 02181_ Dropped Heat Sink. 02182_ Dropped Flight Unit. 02182_ Acquired Lgt. Assault Rifle. Map ----- +----------------------------------------------------+ | ?????????????????????????????????????????????????? | | ?????????????????????????????????????????????????? | | ?????????????????????????????????????????????????? | | ?????????????????????????????????????????????????? | | ?????????????????????????????????????????????????? | | ?????????????????????????????????????????????????? | | ?????????????????????????????????????????????????? | | ?????????????????????????????????????????????????? | | ?????????????????????????????????????????????????? | | ?????????????????????????????????????????????????? | | ?????????????????????????#???????????????????????? | | ??????????????#?????????? ???????????????????????? | | ??????????????# ????????? ???????????????????????? | | ??????????????# ????? ??g???????????????????????? | | ??????????????# ? ?? ???????????????????????? | | ????# ????????# ?? ???????????????????????? | | ????? ???????# """" ?? ???????????????????????? | | ?????? ???????# """" ?# #??????????????????????? | | ??????? ??????? """"??#*#??????????????????????? | | ?????### ??????? ??#=#??????????????????????? | | ?????? ??????? ??#[#??????????????????????? | | ??????""" ???????# #??#%##?????????????????????? | | ????? """ ??????# ####==##????????????????????? | | ??""" """ ####### [%==[=#????????????????????? | | ??? =# ### * #????????????????????? | | ????? """ ![# #?##@= #????????????????????? | | ????? """ == ![= #??#! #????????????????????? | | ????? """ % [=####??## #???????????????????? | | ??? [ #??????? ??????????????????? | | ??""" """ ## ###???????# ????????????????? | | ????? """ ?# #?????????? #???????????????? | | ??????""" ??# #??????????# ##???????????????? | | ?????? ???# #???????????# ##????????????????? | | ????? """???? #????????????###?????????????????? | | ????" ""?????####????????????????????????????????? | | ?????????????????????????????????????????????????? | | ?????????????????????????????????????????????????? | | ?????????????????????????????????????????????????? | | ?????????????????????????????????????????????????? | | ?????????????????????????????????????????????????? | | | | | | | | | | | | | | | | | | | | | +----------------------------------------------------+ Best States ------------- Heat Dissipation 35 Energy Generation 14 Energy Capacity 160 Matter Stores 285 Matter Capacity 300 Sight Range 16 Terrain Scan Density 10 Additional Mass Support 6 Evasion (%) 55 Recoil Reduction 2 Item Schematics ----------------- None Robot Schematics ------------------ None Fabricated ------------ Nothing Alien Tech Used ----------------- None Achievements -------------- None Challenges ------------ None Game ------ Seed PropulsionPulseSword Manual? 0 Play Time 00:16:00 Cumulative 3.4 hours Start 2024.02.08 @ 05:25:58 End 2024.02.08 @ 05:40:47 Sessions 1 Manual Loads 0 Difficulty Rogue Special Mode None Game No. 19 Rogue 19 Adventurer 0 Explorer 0 Win Type - Total 0 Types 0/0/0/0/0/0/0/0/0 Lore% 3 Gallery% 8 Achievement% 10 Wizard Run 0 Options --------- ASCII 0 Keyboard 0 Movement Arrows Keybinds 0 Fullscreen 1 Font 12/Terminus Map View 83x54 Tactical HUD 1 Map Filters NONE Filters NONE Steam 1 RUN: 82f31d0e-2688-45ba-949b-0a6592a95b42